[Event "Titled Tuesday Blitz December 7 2021"]
[White "Vakhlamov, Igor L."]
[Black "Ibrahimli, Murad"]
[WhiteFideId "24126748"]
[BlackFideId "13410229"]
[WhiteElo "2416"]
[BlackElo "2109"]
[Result "1/2-1/2"]
[Round "10"]
[TimeControl "180+1"]
[Date "2021.12.07"]
[WhiteClock "0:00:39"]
[BlackClock "0:01:57"]

1. e4 {[%clk 0:03:00]}  c5 {[%clk 0:02:58]} 2. Nf3 {[%clk 0:03:01]}  d6 {[%clk 0:02:58]} 3. Nc3 {[%clk 0:03:01]}  a6 {[%clk 0:02:58]} 4. a4 {[%clk 0:02:57]}  Nc6 {[%clk 0:02:57]} 5. g3 {[%clk 0:02:52]}  Bg4 {[%clk 0:02:54]} 6. h3 {[%clk 0:02:46]}  Bxf3 {[%clk 0:02:54]} 7. Qxf3 {[%clk 0:02:47]}  g6 {[%clk 0:02:55]} 8. Bg2 {[%clk 0:02:46]}  Bg7 {[%clk 0:02:55]} 9. O-O {[%clk 0:02:46]}  Nf6 {[%clk 0:02:55]} 10. d3 {[%clk 0:02:45]}  O-O {[%clk 0:02:53]} 11. Qd1 {[%clk 0:02:45]}  Rb8 {[%clk 0:02:53]} 12. Ne2 {[%clk 0:02:34]}  b5 {[%clk 0:02:52]} 13. axb5 {[%clk 0:02:35]}  axb5 {[%clk 0:02:53]} 14. c3 {[%clk 0:02:34]}  b4 {[%clk 0:02:53]} 15. d4 {[%clk 0:02:17]}  bxc3 {[%clk 0:02:50]} 16. bxc3 {[%clk 0:02:18]}  cxd4 {[%clk 0:02:49]} 17. cxd4 {[%clk 0:02:19]}  Nd7 {[%clk 0:02:48]} 18. Qa4 {[%clk 0:01:49]}  Ra8 {[%clk 0:02:26]} 19. Qxa8 {[%clk 0:01:48]}  Qxa8 {[%clk 0:02:27]} 20. Rxa8 {[%clk 0:01:47]}  Rxa8 {[%clk 0:02:28]} 21. e5 {[%clk 0:01:38]}  Rc8 {[%clk 0:02:28]} 22. exd6 {[%clk 0:01:35]}  exd6 {[%clk 0:02:29]} 23. Bf4 {[%clk 0:01:21]}  Nxd4 {[%clk 0:02:19]} 24. Nxd4 {[%clk 0:01:21]}  Bxd4 {[%clk 0:02:19]} 25. Bxd6 {[%clk 0:01:21]}  Rc2 {[%clk 0:02:17]} 26. Be4 {[%clk 0:01:17]}  Re2 {[%clk 0:02:13]} 27. Bf3 {[%clk 0:01:13]}  Rb2 {[%clk 0:02:14]} 28. h4 {[%clk 0:01:03]}  h5 {[%clk 0:02:12]} 29. Kg2 {[%clk 0:01:02]}  Kg7 {[%clk 0:02:10]} 30. Bc6 {[%clk 0:00:57]}  Nf6 {[%clk 0:02:09]} 31. Bf3 {[%clk 0:00:57]}  Ng4 {[%clk 0:02:09]} 32. Bxg4 {[%clk 0:00:56]}  hxg4 {[%clk 0:02:10]} 33. Bf4 {[%clk 0:00:56]}  Kf6 {[%clk 0:02:09]} 34. Bc1 {[%clk 0:00:55]}  Rc2 {[%clk 0:02:08]} 35. Bg5+ {[%clk 0:00:56]}  Kf5 {[%clk 0:02:08]} 36. Bf4 {[%clk 0:00:56]}  f6 {[%clk 0:02:08]} 37. Bd6 {[%clk 0:00:55]}  Ke6 {[%clk 0:02:08]} 38. Bf4 {[%clk 0:00:55]}  Kd5 {[%clk 0:02:08]} 39. Bh6 {[%clk 0:00:55]}  Kc4 {[%clk 0:01:58]} 40. Rc1 {[%clk 0:00:45]}  Rxc1 {[%clk 0:01:48]} 41. Bxc1 {[%clk 0:00:46]}  Kd3 {[%clk 0:01:48]} 42. f3 {[%clk 0:00:46]}  f5 {[%clk 0:01:49]} 43. Bf4 {[%clk 0:00:45]}  Ke2 {[%clk 0:01:48]} 44. fxg4 {[%clk 0:00:45]}  fxg4 {[%clk 0:01:49]} 45. Bb8 {[%clk 0:00:45]}  Be3 {[%clk 0:01:49]} 46. Bc7 {[%clk 0:00:45]}  Bf2 {[%clk 0:01:47]} 47. Bb8 {[%clk 0:00:44]}  Be1 {[%clk 0:01:47]} 48. Bc7 {[%clk 0:00:45]}  Ke3 {[%clk 0:01:47]} 49. Bf4+ {[%clk 0:00:44]}  Ke4 {[%clk 0:01:47]} 50. Bc7 {[%clk 0:00:45]}  Bd2 {[%clk 0:01:47]} 51. Bd6 {[%clk 0:00:44]}  Be3 {[%clk 0:01:47]} 52. Bc7 {[%clk 0:00:44]}  Bd4 {[%clk 0:01:47]} 53. Bb8 {[%clk 0:00:43]}  Be5 {[%clk 0:01:47]} 54. Ba7 {[%clk 0:00:37]}  Kd3 {[%clk 0:01:42]} 55. Bb6 {[%clk 0:00:36]}  Ke2 {[%clk 0:01:40]} 56. Bd8 {[%clk 0:00:37]}  Bd6 {[%clk 0:01:39]} 57. Bg5 {[%clk 0:00:37]}  Kd3 {[%clk 0:01:39]} 58. Bh6 {[%clk 0:00:34]}  Ke4 {[%clk 0:01:40]} 59. Bg5 {[%clk 0:00:34]}  Kf5 {[%clk 0:01:40]} 60. Bh6 {[%clk 0:00:34]}  Be5 {[%clk 0:01:41]} 61. Bd2 {[%clk 0:00:35]}  Ke6 {[%clk 0:01:41]} 62. Be3 {[%clk 0:00:35]}  Kd5 {[%clk 0:01:41]} 63. Bg5 {[%clk 0:00:35]}  Kc4 {[%clk 0:01:42]} 64. Bh6 {[%clk 0:00:36]}  Kd3 {[%clk 0:01:42]} 65. Bg5 {[%clk 0:00:36]}  Ke4 {[%clk 0:01:42]} 66. Bh6 {[%clk 0:00:36]}  Bf6 {[%clk 0:01:42]} 67. Bd2 {[%clk 0:00:36]}  Kf5 {[%clk 0:01:42]} 68. Be3 {[%clk 0:00:36]}  Be7 {[%clk 0:01:41]} 69. Bd2 {[%clk 0:00:37]}  Bd8 {[%clk 0:01:41]} 70. Be3 {[%clk 0:00:37]}  Ke4 {[%clk 0:01:41]} 71. Bd2 {[%clk 0:00:37]}  Bf6 {[%clk 0:01:41]} 72. Bf4 {[%clk 0:00:37]}  Bxh4 {[%clk 0:01:41]} 73. Bd2 {[%clk 0:00:36]}  Bf6 {[%clk 0:01:41]} 74. Bf4 {[%clk 0:00:35]}  Be5 {[%clk 0:01:41]} 75. Bg5 {[%clk 0:00:34]}  Kd3 {[%clk 0:01:41]} 76. Bh6 {[%clk 0:00:34]}  Ke2 {[%clk 0:01:41]} 77. Bg5 {[%clk 0:00:34]}  Bd4 {[%clk 0:01:42]} 78. Bh6 {[%clk 0:00:34]}  Be3 {[%clk 0:01:42]} 79. Bg7 {[%clk 0:00:34]}  Kd3 {[%clk 0:01:40]} 80. Bf8 {[%clk 0:00:34]}  Ke4 {[%clk 0:01:40]} 81. Be7 {[%clk 0:00:35]}  Bd4 {[%clk 0:01:40]} 82. Bd8 {[%clk 0:00:35]}  Be5 {[%clk 0:01:41]} 83. Be7 {[%clk 0:00:35]}  Kf5 {[%clk 0:01:41]} 84. Bd8 {[%clk 0:00:35]}  Ke4 {[%clk 0:01:40]} 85. Be7 {[%clk 0:00:35]}  Bc7 {[%clk 0:01:40]} 86. Bf6 {[%clk 0:00:35]}  Bb6 {[%clk 0:01:40]} 87. Be7 {[%clk 0:00:35]}  Be3 {[%clk 0:01:41]} 88. Bd8 {[%clk 0:00:35]}  Kd3 {[%clk 0:01:41]} 89. Be7 {[%clk 0:00:35]}  Ke2 {[%clk 0:01:41]} 90. Bd6 {[%clk 0:00:36]}  g5 {[%clk 0:01:42]} 91. Be7 {[%clk 0:00:35]}  Bf4 {[%clk 0:01:42]} 92. Bd8 {[%clk 0:00:33]}  Be3 {[%clk 0:01:42]} 93. Be7 {[%clk 0:00:33]}  Kd3 {[%clk 0:01:43]} 94. Bd8 {[%clk 0:00:34]}  Ke4 {[%clk 0:01:43]} 95. Be7 {[%clk 0:00:34]}  Ke5 {[%clk 0:01:44]} 96. Bd8 {[%clk 0:00:35]}  Ke6 {[%clk 0:01:44]} 97. Bc7 {[%clk 0:00:35]}  Kf5 {[%clk 0:01:44]} 98. Bd8 {[%clk 0:00:35]}  Bd4 {[%clk 0:01:45]} 99. Bc7 {[%clk 0:00:35]}  Bf6 {[%clk 0:01:45]} 100. Bd6 {[%clk 0:00:35]}  Ke4 {[%clk 0:01:46]} 101. Bc7 {[%clk 0:00:35]}  Kd3 {[%clk 0:01:46]} 102. Bd6 {[%clk 0:00:36]}  Ke2 {[%clk 0:01:47]} 103. Bc7 {[%clk 0:00:36]}  Ke3 {[%clk 0:01:48]} 104. Bd6 {[%clk 0:00:36]}  Ke4 {[%clk 0:01:48]} 105. Bc7 {[%clk 0:00:37]}  Kf5 {[%clk 0:01:49]} 106. Bd6 {[%clk 0:00:37]}  Ke6 {[%clk 0:01:50]} 107. Bc7 {[%clk 0:00:37]}  Kd7 {[%clk 0:01:50]} 108. Bb6 {[%clk 0:00:37]}  Kc6 {[%clk 0:01:51]} 109. Be3 {[%clk 0:00:37]}  Be7 {[%clk 0:01:51]} 110. Bd4 {[%clk 0:00:37]}  Kd5 {[%clk 0:01:52]} 111. Bb6 {[%clk 0:00:37]}  Kc6 {[%clk 0:01:50]} 112. Be3 {[%clk 0:00:36]}  Bd8 {[%clk 0:01:50]} 113. Bd4 {[%clk 0:00:36]}  Kd5 {[%clk 0:01:51]} 114. Be3 {[%clk 0:00:36]}  Ke4 {[%clk 0:01:51]} 115. Bc5 {[%clk 0:00:37]}  Kd3 {[%clk 0:01:51]} 116. Bd6 {[%clk 0:00:37]}  Kc4 {[%clk 0:01:51]} 117. Be5 {[%clk 0:00:37]}  Kd5 {[%clk 0:01:52]} 118. Bc3 {[%clk 0:00:37]}  Ke4 {[%clk 0:01:52]} 119. Bb4 {[%clk 0:00:38]}  Bf6 {[%clk 0:01:52]} 120. Bd6 {[%clk 0:00:38]}  Kd3 {[%clk 0:01:52]} 121. Bc7 {[%clk 0:00:37]}  Ke2 {[%clk 0:01:52]} 122. Bd6 {[%clk 0:00:37]}  Ke3 {[%clk 0:01:52]} 123. Bc7 {[%clk 0:00:37]}  Ke4 {[%clk 0:01:53]} 124. Bd6 {[%clk 0:00:37]}  Kf5 {[%clk 0:01:53]} 125. Bc7 {[%clk 0:00:38]}  Ke6 {[%clk 0:01:54]} 126. Bb6 {[%clk 0:00:38]}  Kd5 {[%clk 0:01:54]} 127. Bc7 {[%clk 0:00:38]}  Ke6 {[%clk 0:01:54]} 128. Bb6 {[%clk 0:00:38]}  Be7 {[%clk 0:01:55]} 129. Bc7 {[%clk 0:00:38]}  Kd7 {[%clk 0:01:55]} 130. Bb6 {[%clk 0:00:39]}  Kc6 {[%clk 0:01:55]} 131. Bd4 {[%clk 0:00:39]}  Bd8 {[%clk 0:01:56]} 132. Be5 {[%clk 0:00:39]}  Kd5 {[%clk 0:01:56]} 133. Bc3 {[%clk 0:00:39]}  Ke4 {[%clk 0:01:56]} 134. Bb4 {[%clk 0:00:39]}  Kd5 {[%clk 0:01:57]} 135. Bc3 {[%clk 0:00:39]} 1/2-1/2


[Site "https://www.chess.com"]

[Event "Titled Tuesday Blitz December 7 2021"]
[White "Vidit, Santosh Gujrathi"]
[Black "Rasulov, Vugar"]
[WhiteFideId "5029465"]
[BlackFideId "13402390"]
[WhiteElo "2628"]
[BlackElo "2560"]
[Result "1-0"]
[Round "10"]
[TimeControl "180+1"]
[Date "2021.12.07"]
[WhiteClock "0:00:05"]
[BlackClock "0:00:02"]

1. e4 {[%clk 0:03:00]}  c5 {[%clk 0:02:59]} 2. Nf3 {[%clk 0:03:01]}  e6 {[%clk 0:03:00]} 3. d4 {[%clk 0:03:01]}  cxd4 {[%clk 0:03:01]} 4. Nxd4 {[%clk 0:03:01]}  Nc6 {[%clk 0:03:01]} 5. Nc3 {[%clk 0:03:02]}  Qc7 {[%clk 0:03:02]} 6. Be3 {[%clk 0:03:02]}  a6 {[%clk 0:03:02]} 7. Qf3 {[%clk 0:03:02]}  Nf6 {[%clk 0:02:59]} 8. O-O-O {[%clk 0:03:00]}  Ne5 {[%clk 0:02:57]} 9. Qg3 {[%clk 0:03:00]}  h5 {[%clk 0:02:57]} 10. h4 {[%clk 0:02:59]}  d6 {[%clk 0:02:55]} 11. Bf4 {[%clk 0:02:40]}  Bd7 {[%clk 0:02:48]} 12. Nf3 {[%clk 0:02:31]}  Nfg4 {[%clk 0:02:45]} 13. Be2 {[%clk 0:02:27]}  Rc8 {[%clk 0:02:42]} 14. Ng5 {[%clk 0:02:15]}  b5 {[%clk 0:02:33]} 15. a3 {[%clk 0:02:14]}  Qb6 {[%clk 0:02:19]} 16. Bxe5 {[%clk 0:01:56]}  Nxe5 {[%clk 0:02:15]} 17. f4 {[%clk 0:01:55]}  Nc4 {[%clk 0:02:08]} 18. Bxc4 {[%clk 0:01:36]}  Rxc4 {[%clk 0:02:09]} 19. f5 {[%clk 0:01:35]}  b4 {[%clk 0:01:48]} 20. axb4 {[%clk 0:01:35]}  Qxb4 {[%clk 0:01:48]} 21. fxe6 {[%clk 0:01:20]}  fxe6 {[%clk 0:01:49]} 22. Rhf1 {[%clk 0:01:17]}  Be7 {[%clk 0:01:42]} 23. Nf7 {[%clk 0:00:52]}  O-O {[%clk 0:01:30]} 24. Nh6+ {[%clk 0:00:39]}  Kh7 {[%clk 0:01:29]} 25. Rxf8 {[%clk 0:00:39]}  Bxf8 {[%clk 0:01:30]} 26. Nf7 {[%clk 0:00:32]}  Qa5 {[%clk 0:01:03]} 27. Kb1 {[%clk 0:00:32]}  Rb4 {[%clk 0:00:53]} 28. e5 {[%clk 0:00:30]}  Kg8 {[%clk 0:00:33]} 29. Ng5 {[%clk 0:00:27]}  Rg4 {[%clk 0:00:24]} 30. Qd3 {[%clk 0:00:22]}  Rxg5 {[%clk 0:00:24]} 31. hxg5 {[%clk 0:00:23]}  Qxe5 {[%clk 0:00:24]} 32. g6 {[%clk 0:00:24]}  d5 {[%clk 0:00:19]} 33. Qxa6 {[%clk 0:00:23]}  Be8 {[%clk 0:00:13]} 34. Qe2 {[%clk 0:00:13]}  Qxe2 {[%clk 0:00:08]} 35. Nxe2 {[%clk 0:00:14]}  Bxg6 {[%clk 0:00:09]} 36. Nf4 {[%clk 0:00:15]}  Bf5 {[%clk 0:00:09]} 37. Re1 {[%clk 0:00:14]}  Kf7 {[%clk 0:00:03]} 38. Nxh5 {[%clk 0:00:14]}  Bb4 {[%clk 0:00:04]} 39. Rf1 {[%clk 0:00:13]}  Kg6 {[%clk 0:00:04]} 40. Nf4+ {[%clk 0:00:13]}  Kg5 {[%clk 0:00:04]} 41. Nh3+ {[%clk 0:00:12]}  Kg6 {[%clk 0:00:02]} 42. Kc1 {[%clk 0:00:11]}  Bd6 {[%clk 0:00:03]} 43. Kd2 {[%clk 0:00:10]}  Kh5 {[%clk 0:00:03]} 44. c3 {[%clk 0:00:06]}  Kg4 {[%clk 0:00:03]} 45. Rf3 {[%clk 0:00:06]}  Bc5 {[%clk 0:00:02]} 46. Nf2+ {[%clk 0:00:06]}  Kg5 {[%clk 0:00:03]} 47. b4 {[%clk 0:00:07]}  Bd6 {[%clk 0:00:03]} 48. Nh3+ {[%clk 0:00:06]}  Kg4 {[%clk 0:00:03]} 49. Nf2+ {[%clk 0:00:07]}  Kg5 {[%clk 0:00:03]} 50. Ke2 {[%clk 0:00:07]}  e5 {[%clk 0:00:04]} 51. Rg3+ {[%clk 0:00:06]}  Kf6 {[%clk 0:00:03]} 52. Ng4+ {[%clk 0:00:04]}  Ke6 {[%clk 0:00:04]} 53. Ne3 {[%clk 0:00:04]}  g6 {[%clk 0:00:04]} 54. Nxf5 {[%clk 0:00:05]}  gxf5 {[%clk 0:00:04]} 55. Rg6+ {[%clk 0:00:05]}  Kd7 {[%clk 0:00:05]} 56. b5 {[%clk 0:00:05]}  f4 {[%clk 0:00:04]} 57. b6 {[%clk 0:00:04]}  Bc5 {[%clk 0:00:03]} 58. b7 {[%clk 0:00:04]}  Ba7 {[%clk 0:00:04]} 59. Rg7+ {[%clk 0:00:02]}  Kc6 {[%clk 0:00:04]} 60. Rf7 {[%clk 0:00:02]}  Bb8 {[%clk 0:00:04]} 61. Kd3 {[%clk 0:00:02]}  e4+ {[%clk 0:00:05]} 62. Kd4 {[%clk 0:00:02]}  Ba7+ {[%clk 0:00:04]} 63. Ke5 {[%clk 0:00:03]}  e3 {[%clk 0:00:05]} 64. Kxf4 {[%clk 0:00:03]}  Kb5 {[%clk 0:00:01]} 65. Kf3 {[%clk 0:00:03]}  Kc4 {[%clk 0:00:01]} 66. Ke2 {[%clk 0:00:03]}  Kxc3 {[%clk 0:00:01]} 67. Rf8 {[%clk 0:00:03]}  d4 {[%clk 0:00:02]} 68. Rc8+ {[%clk 0:00:04]}  Kb4 {[%clk 0:00:02]} 69. b8=Q+ {[%clk 0:00:05]} 1-0


[Site "https://www.chess.com"]

[Event "Titled Tuesday Blitz December 7 2021"]
[White "Weetik, Vjacheslav"]
[Black "Koutlas, Nikolaos"]
[WhiteFideId "4153472"]
[BlackFideId "25827138"]
[WhiteElo "2469"]
[BlackElo "1525"]
[Result "1-0"]
[Round "10"]
[TimeControl "180+1"]
[Date "2021.12.07"]
[WhiteClock "0:00:11"]
[BlackClock "0:00:05"]

1. Nf3 {[%clk 0:02:55]}  c5 {[%clk 0:02:59]} 2. e4 {[%clk 0:02:54]}  Nc6 {[%clk 0:02:59]} 3. Bb5 {[%clk 0:02:54]}  Nf6 {[%clk 0:02:57]} 4. Nc3 {[%clk 0:02:53]}  Qc7 {[%clk 0:02:53]} 5. O-O {[%clk 0:02:49]}  e5 {[%clk 0:02:50]} 6. Nd5 {[%clk 0:02:43]}  Nxd5 {[%clk 0:02:47]} 7. exd5 {[%clk 0:02:44]}  Ne7 {[%clk 0:02:47]} 8. Re1 {[%clk 0:02:36]}  a6 {[%clk 0:02:47]} 9. Bf1 {[%clk 0:02:16]}  d6 {[%clk 0:02:46]} 10. c3 {[%clk 0:02:13]}  Ng6 {[%clk 0:02:19]} 11. d4 {[%clk 0:02:12]}  cxd4 {[%clk 0:02:17]} 12. cxd4 {[%clk 0:02:13]}  Be7 {[%clk 0:02:14]} 13. dxe5 {[%clk 0:02:09]}  dxe5 {[%clk 0:02:14]} 14. Be3 {[%clk 0:02:05]}  O-O {[%clk 0:02:13]} 15. Rc1 {[%clk 0:02:05]}  Qd8 {[%clk 0:02:10]} 16. Qb3 {[%clk 0:02:02]}  Bg4 {[%clk 0:02:07]} 17. Bb6 {[%clk 0:01:51]}  Qd7 {[%clk 0:02:04]} 18. Nxe5 {[%clk 0:01:46]}  Nxe5 {[%clk 0:02:04]} 19. Rxe5 {[%clk 0:01:46]}  Bd6 {[%clk 0:02:05]} 20. Ree1 {[%clk 0:01:40]}  h5 {[%clk 0:02:03]} 21. Bc5 {[%clk 0:01:29]}  Bxc5 {[%clk 0:01:46]} 22. Rxc5 {[%clk 0:01:29]}  Rfe8 {[%clk 0:01:47]} 23. Rec1 {[%clk 0:01:28]}  b5 {[%clk 0:01:42]} 24. Qg3 {[%clk 0:01:16]}  Be2 {[%clk 0:01:35]} 25. Qf4 {[%clk 0:00:56]}  Bxf1 {[%clk 0:01:27]} 26. Rxf1 {[%clk 0:00:56]}  Re2 {[%clk 0:01:24]} 27. b4 {[%clk 0:00:51]}  Rxa2 {[%clk 0:01:16]} 28. h3 {[%clk 0:00:51]}  Re8 {[%clk 0:01:12]} 29. d6 {[%clk 0:00:45]}  Qe6 {[%clk 0:00:40]} 30. Rd1 {[%clk 0:00:40]}  Qe2 {[%clk 0:00:35]} 31. Rcd5 {[%clk 0:00:37]}  Re4 {[%clk 0:00:12]} 32. Qg3 {[%clk 0:00:21]}  h4 {[%clk 0:00:10]} 33. Qf3 {[%clk 0:00:15]}  Qxf3 {[%clk 0:00:06]} 34. gxf3 {[%clk 0:00:16]}  Re8 {[%clk 0:00:05]} 35. d7 {[%clk 0:00:16]}  Rd8 {[%clk 0:00:05]} 36. Re1 {[%clk 0:00:17]}  Kf8 {[%clk 0:00:05]} 37. Rde5 {[%clk 0:00:17]}  f6 {[%clk 0:00:01]} 38. Re8+ {[%clk 0:00:17]}  Kf7 {[%clk 0:00:02]} 39. Rxd8 {[%clk 0:00:18]}  Rd2 {[%clk 0:00:02]} 40. Kg2 {[%clk 0:00:14]}  g5 {[%clk 0:00:02]} 41. Ra1 {[%clk 0:00:14]}  Rd6 {[%clk 0:00:01]} 42. Rxa6 {[%clk 0:00:12]}  Rxa6 {[%clk 0:00:02]} 43. Rf8+ {[%clk 0:00:13]}  Kxf8 {[%clk 0:00:03]} 44. d8=Q+ {[%clk 0:00:14]}  Kf7 {[%clk 0:00:03]} 45. Qd7+ {[%clk 0:00:13]}  Kg6 {[%clk 0:00:03]} 46. Qxb5 {[%clk 0:00:11]}  Re6 {[%clk 0:00:03]} 47. Qd3+ {[%clk 0:00:10]}  Kf7 {[%clk 0:00:04]} 48. b5 {[%clk 0:00:11]}  f5 {[%clk 0:00:04]} 49. Qxf5+ {[%clk 0:00:11]}  Rf6 {[%clk 0:00:04]} 50. Qxf6+ {[%clk 0:00:10]}  Kxf6 {[%clk 0:00:05]} 51. b6 {[%clk 0:00:11]} 1-0


[Site "https://www.chess.com"]

[Event "Titled Tuesday Blitz December 7 2021"]
[White "Yang, Kaiqi"]
[Black "Mirzanurov, Bulat"]
[WhiteFideId "8604398"]
[BlackFideId "4184521"]
[WhiteElo "2373"]
[BlackElo "2116"]
[Result "1-0"]
[Round "10"]
[TimeControl "180+1"]
[Date "2021.12.07"]
[WhiteClock "0:00:07"]
[BlackClock "0:00:04"]

1. d4 {[%clk 0:03:00]}  d5 {[%clk 0:02:57]} 2. c4 {[%clk 0:03:00]}  dxc4 {[%clk 0:02:57]} 3. Nf3 {[%clk 0:02:58]}  Nf6 {[%clk 0:02:56]} 4. e3 {[%clk 0:02:59]}  e6 {[%clk 0:02:50]} 5. Bxc4 {[%clk 0:02:58]}  a6 {[%clk 0:02:36]} 6. O-O {[%clk 0:02:57]}  c5 {[%clk 0:02:35]} 7. Bb3 {[%clk 0:02:53]}  b5 {[%clk 0:02:34]} 8. a4 {[%clk 0:02:52]}  Bb7 {[%clk 0:02:28]} 9. axb5 {[%clk 0:02:50]}  axb5 {[%clk 0:02:22]} 10. Rxa8 {[%clk 0:02:51]}  Bxa8 {[%clk 0:02:21]} 11. Nc3 {[%clk 0:02:37]}  Bc6 {[%clk 0:02:11]} 12. dxc5 {[%clk 0:02:27]}  Qxd1 {[%clk 0:02:09]} 13. Rxd1 {[%clk 0:02:28]}  Bxc5 {[%clk 0:02:08]} 14. Ne5 {[%clk 0:02:13]}  b4 {[%clk 0:01:55]} 15. Nxc6 {[%clk 0:02:04]}  Nxc6 {[%clk 0:01:53]} 16. Ba4 {[%clk 0:01:55]}  bxc3 {[%clk 0:01:52]} 17. Bxc6+ {[%clk 0:01:55]}  Ke7 {[%clk 0:01:51]} 18. bxc3 {[%clk 0:01:54]}  Rc8 {[%clk 0:01:50]} 19. Bb5 {[%clk 0:01:39]}  Bd6 {[%clk 0:01:42]} 20. c4 {[%clk 0:01:36]}  e5 {[%clk 0:01:40]} 21. f3 {[%clk 0:01:25]}  e4 {[%clk 0:01:32]} 22. Bb2 {[%clk 0:01:21]}  exf3 {[%clk 0:01:29]} 23. gxf3 {[%clk 0:01:22]}  Bc5 {[%clk 0:01:26]} 24. Bd4 {[%clk 0:01:13]}  h5 {[%clk 0:01:20]} 25. Kg2 {[%clk 0:01:05]}  g5 {[%clk 0:01:14]} 26. Ra1 {[%clk 0:01:00]}  g4 {[%clk 0:01:08]} 27. Ra6 {[%clk 0:00:56]}  gxf3+ {[%clk 0:01:03]} 28. Kxf3 {[%clk 0:00:57]}  Ne8 {[%clk 0:00:56]} 29. Rh6 {[%clk 0:00:32]}  Nd6 {[%clk 0:00:48]} 30. Bf6+ {[%clk 0:00:24]}  Ke6 {[%clk 0:00:43]} 31. Ba1+ {[%clk 0:00:21]}  Ke7 {[%clk 0:00:36]} 32. Rxh5 {[%clk 0:00:21]}  Bb4 {[%clk 0:00:30]} 33. Re5+ {[%clk 0:00:18]}  Kf8 {[%clk 0:00:28]} 34. Rh5 {[%clk 0:00:15]}  Ke7 {[%clk 0:00:23]} 35. Rh4 {[%clk 0:00:15]}  Rc5 {[%clk 0:00:20]} 36. Bd4 {[%clk 0:00:13]}  Rf5+ {[%clk 0:00:19]} 37. Rf4 {[%clk 0:00:14]}  Ke6 {[%clk 0:00:16]} 38. Rxf5 {[%clk 0:00:13]}  Nxf5 {[%clk 0:00:16]} 39. Ke4 {[%clk 0:00:13]}  Nxd4 {[%clk 0:00:15]} 40. exd4 {[%clk 0:00:14]}  Bf8 {[%clk 0:00:14]} 41. c5 {[%clk 0:00:14]}  Be7 {[%clk 0:00:14]} 42. Bc4+ {[%clk 0:00:14]}  Kf6 {[%clk 0:00:13]} 43. Kd5 {[%clk 0:00:13]}  Bd8 {[%clk 0:00:12]} 44. Kc6 {[%clk 0:00:14]}  Ke7 {[%clk 0:00:12]} 45. d5 {[%clk 0:00:14]}  Ba5 {[%clk 0:00:11]} 46. d6+ {[%clk 0:00:12]}  Ke8 {[%clk 0:00:10]} 47. Kb5 {[%clk 0:00:08]}  Bd8 {[%clk 0:00:10]} 48. c6 {[%clk 0:00:08]}  Bg5 {[%clk 0:00:06]} 49. Kb6 {[%clk 0:00:05]}  Be3+ {[%clk 0:00:06]} 50. Kb7 {[%clk 0:00:05]}  Bc5 {[%clk 0:00:04]} 51. c7 {[%clk 0:00:05]}  Bxd6 {[%clk 0:00:03]} 52. c8=Q+ {[%clk 0:00:06]}  Ke7 {[%clk 0:00:04]} 53. Qf5 {[%clk 0:00:06]}  f6 {[%clk 0:00:03]} 54. Qe6+ {[%clk 0:00:06]}  Kd8 {[%clk 0:00:03]} 55. Qxd6+ {[%clk 0:00:06]}  Ke8 {[%clk 0:00:04]} 56. Qe6+ {[%clk 0:00:06]}  Kd8 {[%clk 0:00:05]} 57. Bb5 {[%clk 0:00:07]}  f5 {[%clk 0:00:04]} 58. Qd7# {[%clk 0:00:07]} 1-0


[Site "https://www.chess.com"]

[Event "Titled Tuesday Blitz December 7 2021"]
[White "Zhuravleva, Olga"]
[Black "Budrewicz, Krzysztof"]
[WhiteFideId "4145933"]
[BlackFideId "1127950"]
[WhiteElo "2119"]
[BlackElo "2242"]
[Result "0-1"]
[Round "10"]
[TimeControl "180+1"]
[Date "2021.12.07"]
[WhiteClock "0:01:37"]
[BlackClock "0:02:21"]

1. e4 {[%clk 0:03:00]}  c5 {[%clk 0:02:58]} 2. Nf3 {[%clk 0:02:58]}  e6 {[%clk 0:02:58]} 3. d4 {[%clk 0:02:58]}  cxd4 {[%clk 0:02:59]} 4. Nxd4 {[%clk 0:02:59]}  Nf6 {[%clk 0:02:59]} 5. Nc3 {[%clk 0:02:59]}  Nc6 {[%clk 0:03:00]} 6. a3 {[%clk 0:02:55]}  d5 {[%clk 0:02:58]} 7. exd5 {[%clk 0:02:54]}  exd5 {[%clk 0:02:56]} 8. Be2 {[%clk 0:02:49]}  Be7 {[%clk 0:02:56]} 9. O-O {[%clk 0:02:49]}  O-O {[%clk 0:02:56]} 10. Bf3 {[%clk 0:02:49]}  Be6 {[%clk 0:02:55]} 11. Re1 {[%clk 0:02:48]}  Nxd4 {[%clk 0:02:55]} 12. Qxd4 {[%clk 0:02:47]}  Qb6 {[%clk 0:02:44]} 13. Qxb6 {[%clk 0:02:39]}  axb6 {[%clk 0:02:45]} 14. Bf4 {[%clk 0:02:39]}  Rfc8 {[%clk 0:02:44]} 15. Rad1 {[%clk 0:02:36]}  Rxc3 {[%clk 0:02:37]} 16. bxc3 {[%clk 0:02:35]}  Rxa3 {[%clk 0:02:37]} 17. Be5 {[%clk 0:02:29]}  h6 {[%clk 0:02:34]} 18. h3 {[%clk 0:02:24]}  Ra2 {[%clk 0:02:30]} 19. Re2 {[%clk 0:02:13]}  Nd7 {[%clk 0:02:27]} 20. Bxd5 {[%clk 0:02:01]}  Bxd5 {[%clk 0:02:27]} 21. Rxd5 {[%clk 0:02:01]}  Nxe5 {[%clk 0:02:27]} 22. Rdxe5 {[%clk 0:01:58]}  Bc5 {[%clk 0:02:27]} 23. Re8+ {[%clk 0:01:54]}  Kh7 {[%clk 0:02:27]} 24. Rb8 {[%clk 0:01:54]}  Ra1+ {[%clk 0:02:24]} 25. Kh2 {[%clk 0:01:53]}  Bd6+ {[%clk 0:02:24]} 26. g3 {[%clk 0:01:45]}  Bxb8 {[%clk 0:02:24]} 27. Re7 {[%clk 0:01:45]}  Bd6 {[%clk 0:02:20]} 28. Rxf7 {[%clk 0:01:42]}  Ra2 {[%clk 0:02:19]} 29. Rxb7 {[%clk 0:01:41]}  Bc5 {[%clk 0:02:19]} 30. Kg2 {[%clk 0:01:38]}  Rxc2 {[%clk 0:02:19]} 31. Kf3 {[%clk 0:01:38]}  Rxf2+ {[%clk 0:02:19]} 32. Ke4 {[%clk 0:01:37]}  Rc2 {[%clk 0:02:20]} 33. Kd3 {[%clk 0:01:37]}  Rg2 {[%clk 0:02:20]} 34. g4 {[%clk 0:01:37]}  Rg3+ {[%clk 0:02:21]} 0-1


[Site "https://www.chess.com"]